bitfinex-derivatives/quotes_BTCF0:USTF0_20250402
["timestamp","ask_amount","ask_price","bid_price","bid_amount"]
[1743618427666,0.13863348,86519.0,86518.0,0.28306483]
[1743618427974,0.05843348,86519.0,86518.0,0.28306483]
[1743618428167,0.05843348,86519.0,86518.0,0.29876143]
[1743618428976,0.20673063,86519.0,86518.0,0.29876143]
[1743618429178,0.20805063,86519.0,86518.0,0.29876143]
[1743618431975,0.32362983,86519.0,86518.0,0.29876143]
[1743618432177,0.20805063,86519.0,86518.0,0.29876143]
[1743618432675,0.32362983,86519.0,86518.0,0.29876143]
[1743618432877,0.1168992,86519.0,86518.0,0.18318093]
[1743618433086,0.1168992,86519.0,86518.0,0.16748433]
[1743618433275,0.1674992,86519.0,86518.0,0.28306483]
[1743618433675,0.1674992,86519.0,86518.0,0.16748433]
[1743618435378,0.35113681,86519.0,86518.0,0.01546433]
[1743618435677,0.36113681,86519.0,86518.0,0.01546433]
[1743618435981,0.63149681,86519.0,86518.0,0.01546433]
[1743618436277,0.63149681,86519.0,86518.0,3e-08]
[1743618436680,0.1155992,86504.0,86503.0,0.00046241]
[1743618436887,0.8149592,86504.0,86503.0,0.00178241]
[1743618437184,0.93789352,86504.0,86503.0,0.00046241]
[1743618437674,1.04219352,86504.0,86503.0,0.00046241]
[1743618439584,0.1156099,86496.0,86495.0,0.00017336]
[1743618439779,0.7164099,86496.0,86495.0,6e-08]
[1743618439980,0.84781274,86496.0,86495.0,6e-08]
[1743618440485,0.95111274,86496.0,86495.0,6e-08]
[1743618440883,0.95972516,86496.0,86495.0,6e-08]
[1743618441180,1.10972516,86496.0,86495.0,6e-08]
[1743618443086,0.95972516,86496.0,86495.0,6e-08]
[1743618445474,0.1156206,86488.0,86487.0,5e-08]
[1743618445679,0.83562061,86488.0,86487.0,5e-08]
[1743618445979,0.96195598,86488.0,86487.0,5e-08]
[1743618448886,0.88335598,86488.0,86487.0,5e-08]
[1743618449091,0.96195598,86488.0,86487.0,5e-08]
[1743618449878,1.15375598,86488.0,86487.0,5e-08]
[1743618451283,1.25095598,86488.0,86487.0,5e-08]
[1743618459893,1.07515598,86488.0,86487.0,5e-08]
[1743618460499,1.17035598,86488.0,86487.0,5e-08]
[1743618460904,1.24891598,86488.0,86487.0,5e-08]
[1743618463493,0.3074313,86480.0,86479.0,0.00017336]
[1743618463786,0.9389113,86480.0,86479.0,0.00017336]
[1743618463993,1.0628787,86480.0,86479.0,0.00017336]
[1743618464193,1.17404278,86480.0,86479.0,0.00017336]
[1743618466502,1.17404278,86480.0,86472.0,0.0482]
[1743618466692,0.307442,86472.0,86456.0,0.1]
[1743618466998,0.646642,86472.0,86456.0,0.1]
[1743618467202,0.8708043,86472.0,86456.0,0.1]
[1743618467795,0.8708043,86472.0,86463.0,0.00017346]
[1743618467992,0.8187043,86472.0,86463.0,0.00017346]
[1743618470204,0.99062209,86472.0,86463.0,0.00017346]
[1743618472908,0.8187043,86472.0,86463.0,0.00017346]
[1743618475207,0.6919443,86472.0,86463.0,0.00017346]
[1743618475407,0.7705043,86472.0,86463.0,0.10177346]
[1743618476209,0.8210043,86472.0,86463.0,0.10177346]
[1743618477205,0.8689043,86472.0,86463.0,0.10177346]
[1743618480916,0.8689043,86472.0,86463.0,0.05107346]
[1743618481815,0.8689043,86472.0,86471.0,8e-08]
[1743618483014,1.07563493,86472.0,86471.0,8e-08]
[1743618484415,0.95999293,86472.0,86463.0,6e-08]
[1743618484709,0.3074634,86456.0,86455.0,0.00042273]
[1743618484914,1.0074634,86456.0,86455.0,0.00042273]
[1743618485110,1.24120031,86456.0,86455.0,0.00042273]
[1743618487610,1.24120031,86456.0,86455.0,3e-08]
[1743618490320,0.3074741,86448.0,86447.0,9e-08]
[1743618490517,0.9282741,86448.0,86447.0,9e-08]
[1743618490815,1.15982872,86448.0,86447.0,9e-08]
[1743618493624,1.23834872,86448.0,86447.0,9e-08]
[1743618495218,1.11721896,86448.0,86447.0,9e-08]
[1743618495423,0.14074486,86448.0,86447.0,0.11567549]
[1743618495613,0.25641896,86448.0,86447.0,0.00132009]
[1743618495925,0.25641896,86448.0,86447.0,9e-08]
[1743618496620,0.25641896,86448.0,86447.0,0.00132009]
[1743618496825,0.00060001,86448.0,86447.0,0.16637549]
[1743618497016,0.00060001,86448.0,86447.0,0.21929549]
[1743618497521,0.1156733,86449.0,86448.0,0.1735062]
[1743618497721,0.1156733,86449.0,86448.0,0.2742262]
[1743618497722,0.1169933,86449.0,86448.0,0.2742262]
[1743618497916,0.1169933,86449.0,86448.0,0.1585563]
[1743618498113,0.1169933,86449.0,86448.0,0.10072]
[1743618498324,0.4777933,86449.0,86448.0,0.10072]
[1743618498721,0.60560311,86449.0,86448.0,0.10072]
[1743618498923,0.87560311,86449.0,86448.0,0.0494]
[1743618499124,0.87560311,86449.0,86447.0,9e-08]
[1743618499125,0.1156741,86448.0,86447.0,9e-08]
[1743618499424,0.6874541,86448.0,86447.0,9e-08]
[1743618499617,0.81447977,86448.0,86447.0,9e-08]
[1743618499814,0.62247977,86448.0,86447.0,9e-08]
[1743618502419,0.57217977,86448.0,86447.0,9e-08]
[1743618503027,0.65069977,86448.0,86447.0,9e-08]
[1743618505136,0.69979977,86448.0,86447.0,9e-08]
[1743618509526,0.62127977,86448.0,86447.0,9e-08]
[1743618509722,0.69979977,86448.0,86447.0,9e-08]
[1743618511326,0.80620869,86448.0,86447.0,9e-08]
[1743618514139,0.69979977,86448.0,86447.0,9e-08]
[1743618514436,0.1157062,86424.0,86423.0,8e-08]
[1743618514641,1.1965062,86424.0,86423.0,8e-08]
[1743618514836,1.60979284,86424.0,86423.0,8e-08]
[1743618515535,1.62106767,86424.0,86423.0,8e-08]
[1743618518940,0.1156598,86384.0,86383.0,0.2723807]
[1743618519243,0.1157772,86371.0,86370.0,0.3612806]
[1743618519441,0.5564172,86371.0,86370.0,0.3626806]
[1743618519636,0.6968068,86371.0,86370.0,0.3626806]
[1743618521038,0.70529896,86371.0,86370.0,0.3626806]
[1743618521834,0.75349896,86371.0,86370.0,0.3626806]
[1743618522546,0.75339896,86371.0,86370.0,0.3626806]
[1743618522843,0.71674489,86371.0,86370.0,0.3626806]
[1743618523730,0.82004602,86371.0,86370.0,0.0014]
[1743618523938,0.1157826,86367.0,86366.0,0.0946]
[1743618524432,0.23856582,86367.0,86366.0,0.09596]
[1743618524634,0.1157826,86367.0,86366.0,0.0946]
[1743618525031,0.00060001,86367.0,86366.0,0.3603839]
[1743618525242,0.21907873,86371.0,86370.0,0.1157786]
[1743618525446,0.21967874,86371.0,86370.0,0.1170986]
[1743618525740,0.10390114,86371.0,86370.0,0.1170986]
[1743618526133,0.21967834,86371.0,86370.0,0.1170986]
[1743618527338,0.11637721,86371.0,86370.0,0.1170986]
[1743618527947,0.11627721,86371.0,86370.0,0.1170986]
[1743618530634,0.11627721,86371.0,86370.0,0.00132]
[1743618531038,0.11627721,86371.0,86370.0,0.09772]
[1743618532341,0.11627721,86371.0,86370.0,0.0964]
[1743618532537,0.11627721,86371.0,86370.0,0.09776]
[1743618533655,0.25267149,86371.0,86370.0,0.0509]
[1743618533846,0.30367149,86371.0,86370.0,0.0509]
[1743618534048,0.35047149,86371.0,86370.0,0.0509]
[1743618535144,0.1157906,86361.0,86360.0,0.0455]
[1743618535345,0.1171506,86361.0,86360.0,0.05176]
[1743618535548,0.115792,86360.0,86359.0,0.00046318]
[1743618535741,0.21419201,86360.0,86359.0,0.00046318]
[1743618535941,0.34229823,86360.0,86359.0,0.00046318]
[1743618536250,0.70081823,86360.0,86359.0,0.00046318]
[1743618539942,0.89281823,86360.0,86359.0,0.00046318]
[1743618540655,0.70081823,86360.0,86359.0,0.00046318]
[1743618542456,1.06161823,86360.0,86359.0,0.00046318]
[1743618543251,1.25361823,86360.0,86359.0,0.00046318]
[1743618546170,1.25361823,86360.0,86359.0,8e-08]
[1743618546464,0.192,86356.0,86289.0,0.54698739]
[1743618546671,0.8374456,86320.0,86319.0,0.20867277]
[1743618546958,0.115852,86316.0,86315.0,0.1158504]
[1743618547160,0.117212,86316.0,86315.0,0.2330617]
[1743618547371,0.117212,86316.0,86315.0,0.1172104]
[1743618548662,0.117212,86316.0,86315.0,0.00136]
[1743618548863,0.1158537,86314.0,86313.0,0.0485]
[1743618549163,0.11645371,86314.0,86313.0,0.0485]
[1743618549567,0.11645371,86314.0,86313.0,0.164355]
[1743618549760,0.11645371,86314.0,86313.0,0.165715]
[1743618550563,0.11645371,86314.0,86313.0,0.04986]
[1743618550756,0.11645371,86314.0,86313.0,0.0485]
[1743618551761,0.11645371,86314.0,86312.0,0.00173782]
[1743618551762,0.115855,86313.0,86312.0,2e-08]
[1743618551956,0.527155,86313.0,86312.0,2e-08]
[1743618552463,0.476555,86313.0,86312.0,0.11585642]
[1743618552669,0.476555,86313.0,86312.0,0.21405642]
[1743618552967,0.476555,86313.0,86312.0,0.21549642]
[1743618553155,0.476555,86313.0,86312.0,0.09964002]
[1743618553358,0.476555,86313.0,86312.0,0.21549642]
[1743618553555,0.476555,86313.0,86305.0,0.07856]
[1743618553556,0.3608,86313.0,86300.0,0.06753788]
[1743618553758,0.4766711,86301.0,86300.0,0.06845788]
[1743618553961,0.4766711,86301.0,86300.0,0.06753788]
[1743618554357,0.4766711,86301.0,86300.0,0.06845788]
[1743618554664,0.4766711,86301.0,86300.0,0.18341038]
[1743618554665,0.1158711,86301.0,86300.0,0.18341038]
[1743618554861,0.0509,86303.0,86302.0,0.1158698]
[1743618555056,0.00017377,86309.0,86303.0,0.1158685]
[1743618555264,0.00129378,86309.0,86308.0,0.1158617]
[1743618555458,0.11715418,86309.0,86308.0,0.1169817]
[1743618555763,0.00129378,86309.0,86308.0,0.2669817]
[1743618555968,0.0579214,86323.0,86320.0,0.1158456]
[1743618556266,0.4780843,86321.0,86320.0,0.1172856]
[1743618556851,0.36224,86321.0,86320.0,0.1172856]
[1743618557267,0.4780843,86321.0,86320.0,0.1172856]
[1743618557658,0.4780843,86321.0,86320.0,0.1958456]
[1743618558870,0.4780843,86321.0,86320.0,0.08]
[1743618559064,0.4780843,86321.0,86320.0,0.07856]
[1743618559256,0.4780843,86321.0,86320.0,0.00144]
[1743618559568,0.1158564,86312.0,86311.0,0.1158572]
[1743618559752,0.4780964,86312.0,86311.0,0.1173772]
[1743618560163,0.4780964,86312.0,86311.0,0.00152]
[1743618560370,0.1158711,86301.0,86300.0,0.06771165]
[1743618560587,0.4766711,86301.0,86300.0,0.06771165]
[1743618560764,0.4766711,86301.0,86300.0,0.06923165]
[1743618563157,0.4766711,86301.0,86300.0,0.18510415]
[1743618563565,0.0579275,86313.0,86308.0,0.1158617]
[1743618563764,0.1673561,86313.0,86308.0,0.1173017]
[1743618563969,0.3608,86320.0,86308.0,0.2673017]
[1743618564154,0.1158484,86318.0,86308.0,0.2673017]
[1743618564565,0.0579235,86319.0,86308.0,0.2673017]
[1743618564765,0.11603417,86309.0,86308.0,0.1173017]
[1743618565062,0.11603417,86309.0,86308.0,0.1648017]
[1743618565269,0.11747417,86309.0,86308.0,0.1648017]
[1743618565965,0.00161377,86309.0,86308.0,0.1648017]
[1743618566555,0.00151377,86309.0,86308.0,0.1648017]
[1743618568167,0.00151377,86309.0,86308.0,0.2133017]
[1743618572167,0.00151377,86309.0,86308.0,0.2619017]
[1743618574271,0.11737417,86309.0,86308.0,0.1173017]
[1743618574666,0.16497417,86309.0,86308.0,0.1173017]
[1743618575465,0.16497417,86309.0,86308.0,0.00144]
[1743618575672,0.173798,86306.0,86305.0,0.1158652]
[1743618575967,0.173798,86306.0,86305.0,0.1173052]
[1743618577269,0.173798,86306.0,86305.0,0.00144]
[1743618577466,0.1158671,86304.0,86303.0,0.0579341]
[1743618577663,0.1158671,86304.0,86303.0,0.0594141]
[1743618577975,0.1633671,86304.0,86303.0,0.0594141]
[1743618578165,0.1633671,86304.0,86303.0,0.00148]
[1743618578573,0.1633671,86304.0,86303.0,0.1158685]
[1743618578772,0.1633671,86304.0,86303.0,0.1173085]
[1743618579276,0.2139671,86304.0,86303.0,0.1173085]
[1743618579863,0.2139671,86304.0,86303.0,0.00144]
[1743618580062,0.21456711,86304.0,86303.0,0.1158685]
[1743618580268,0.21456711,86304.0,86303.0,0.1173085]
[1743618580763,0.1158711,86301.0,86300.0,0.06721787]
[1743618580966,0.11647111,86301.0,86300.0,0.06721787]
[1743618581175,0.38462545,86301.0,86300.0,0.06721787]
[1743618581880,0.39462545,86301.0,86300.0,0.06721787]
[1743618582268,0.39462545,86301.0,86300.0,0.00017377]
[1743618582768,0.47318545,86301.0,86300.0,0.00017377]
[1743618584472,0.39462545,86301.0,86300.0,0.00017377]
[1743618584780,0.47318545,86301.0,86300.0,0.00017377]
[1743618587572,0.39462545,86301.0,86300.0,0.00017377]
[1743618587773,0.47318545,86301.0,86300.0,0.00017377]
[1743618588886,0.61065329,86301.0,86300.0,0.00017377]
[1743618590680,0.61055329,86301.0,86300.0,0.00017377]
[1743618593693,0.47298545,86301.0,86300.0,0.00017377]
[1743618594979,0.58642545,86301.0,86300.0,0.00017377]
[1743618595184,0.66498545,86301.0,86300.0,0.00017377]
[1743618598881,0.66498545,86301.0,86280.0,0.0480365]
[1743618598882,0.115898,86281.0,86280.0,0.0480365]
[1743618599088,0.848498,86281.0,86280.0,0.0490365]
[1743618599383,0.848498,86281.0,86263.0,0.0004637]
[1743618599384,0.1158993,86280.0,86279.0,1e-08]
[1743618599583,0.45399931,86280.0,86279.0,1e-08]
[1743618599786,0.58455593,86280.0,86279.0,1e-08]
[1743618600591,0.58455593,86280.0,86271.0,0.00010244]
[1743618600592,0.1159101,86272.0,86271.0,5e-08]
[1743618600893,0.1159208,86264.0,86263.0,0.00042375]
[1743618601080,0.74732081,86264.0,86263.0,0.00042375]
[1743618601275,0.82588081,86264.0,86263.0,0.00042375]
[1743618601586,0.953341,86264.0,86263.0,0.00042375]
[1743618601787,0.36140001,86264.0,86263.0,0.00042375]
[1743618601985,0.36140001,86264.0,86263.0,0.11634595]
[1743618602289,0.47732081,86264.0,86263.0,0.11710595]
[1743618602487,0.47732081,86264.0,86263.0,0.26510595]
[1743618602685,0.47732081,86264.0,86263.0,0.14918375]
[1743618602884,0.47732081,86264.0,86263.0,0.09782375]
[1743618603973,0.59850674,86264.0,86263.0,0.09782375]
[1743618604175,0.79820674,86264.0,86263.0,0.09782375]
[1743618604781,0.79820674,86264.0,86263.0,0.05012375]
[1743618606579,0.79820674,86264.0,86263.0,5e-08]
[1743618608189,0.87676674,86264.0,86263.0,5e-08]
[1743618608577,0.47732081,86264.0,86263.0,5e-08]
[1743618610386,0.47732081,86264.0,86263.0,0.11592225]
[1743618610387,0.12800001,86264.0,86263.0,0.11592225]
[1743618610582,0.10293139,86268.0,86267.0,0.1159168]
[1743618610890,0.2197269,86268.0,86267.0,0.13232552]
[1743618611106,0.11679551,86268.0,86267.0,0.13232552]
[1743618612791,0.00088001,86268.0,86267.0,0.13232552]
[1743618612988,0.1738699,86272.0,86271.0,0.1159114]
[1743618613187,0.1159141,86269.0,86268.0,0.1668155]
[1743618613392,0.1170741,86269.0,86268.0,0.18348026]
[1743618613586,0.1170741,86269.0,86268.0,0.23058026]
[1743618613891,0.1170741,86269.0,86268.0,0.14906]
[1743618614281,0.1170741,86269.0,86268.0,0.1479]
[1743618614482,0.1170741,86269.0,86268.0,0.14906]
[1743618614690,0.1170741,86269.0,86268.0,0.1479]
[1743618614883,0.1170741,86269.0,86268.0,0.1491]
[1743618616197,0.1688741,86269.0,86268.0,0.1491]
[1743618616695,0.1688741,86269.0,86268.0,0.1479]
[1743618617083,0.1688741,86269.0,86268.0,0.14906]
[1743618618087,0.1170741,86269.0,86268.0,0.2649755]
[1743618618785,0.00116,86269.0,86268.0,0.28066716]
[1743618618987,0.1170741,86269.0,86268.0,0.28066716]
[1743618619690,0.00116,86269.0,86268.0,0.28066716]
[1743618619887,0.13717666,86283.0,86278.0,0.115902]
[1743618620082,0.13717666,86283.0,86278.0,0.13307366]
[1743618620288,0.13717666,86283.0,86282.0,0.1158967]
[1743618620592,0.13717666,86283.0,86282.0,0.1482551]
[1743618621182,0.13717666,86283.0,86282.0,0.13317811]
[1743618622197,0.1158907,86287.0,86286.0,0.1158913]
[1743618622392,0.00057377,86288.0,86287.0,0.1158899]
[1743618622598,0.00057377,86288.0,86287.0,0.14208454]
[1743618622896,0.11646237,86288.0,86287.0,0.14208454]
[1743618624193,0.11646237,86288.0,86287.0,0.13321131]
[1743618624498,0.47726237,86288.0,86287.0,0.00156]
[1743618624798,0.115894,86284.0,86283.0,0.1158945]
[1743618625102,0.0579463,86286.0,86274.0,0.1159024]
[1743618625294,0.1159088,86275.0,86274.0,0.1753343]
[1743618625600,0.1159088,86275.0,86274.0,0.19102404]
[1743618625789,0.1159088,86275.0,86274.0,0.20616991]
[1743618625990,0.1159088,86275.0,86274.0,0.01662587]
[1743618626191,0.1662088,86275.0,86274.0,0.01662587]
[1743618626697,0.2131088,86275.0,86274.0,0.01662587]
[1743618627796,0.2131088,86275.0,86274.0,0.13253327]
[1743618627999,0.3031088,86275.0,86274.0,0.01514587]
[1743618628304,0.1159235,86262.0,86261.0,0.00860111]
[1743618628598,0.1739067,86253.0,86252.0,0.0579678]
[1743618628801,0.17494671,86253.0,86252.0,0.0590078]
[1743618629299,0.22474671,86253.0,86252.0,0.0590078]
[1743618631208,0.00104001,86253.0,86252.0,0.0590078]
[1743618631704,0.1159244,86262.0,86261.0,0.1159235]
[1743618631998,0.11696441,86262.0,86261.0,0.1169635]
[1743618632197,0.16846441,86262.0,86261.0,0.1169635]
[1743618632901,0.11696351,86262.0,86261.0,0.1169635]
[1743618633404,0.1159235,86262.0,86261.0,0.1169635]
[1743618633606,0.1166035,86262.0,86261.0,0.1169635]
[1743618633807,0.00068,86262.0,86261.0,0.1169635]
[1743618633994,0.1166035,86262.0,86261.0,0.1811591]
[1743618634394,0.1166035,86262.0,86261.0,0.18115896]
[1743618634696,0.1166035,86262.0,86261.0,0.25971896]
[1743618635995,0.00017388,86270.0,86269.0,0.1159141]
[1743618636202,0.00157389,86270.0,86269.0,0.49375807]
[1743618636390,0.11748669,86270.0,86269.0,0.49375807]
[1743618636596,0.00157389,86270.0,86269.0,0.49375807]
[1743618637702,0.00017388,86270.0,86269.0,0.51907213]
[1743618637905,0.00153388,86270.0,86269.0,0.59759213]
[1743618638096,0.00017388,86270.0,86269.0,0.59759213]
[1743618638293,0.13717666,86276.0,86275.0,0.1159061]
[1743618638497,0.13853666,86276.0,86275.0,0.15830413]
[1743618638805,0.0004,86288.0,86285.0,0.1158926]
[1743618639003,0.0004,86288.0,86287.0,0.1158899]
[1743618639199,0.0004,86288.0,86287.0,0.13333387]
[1743618639397,0.1162886,86288.0,86287.0,0.13333387]
[1743618639599,0.0004,86288.0,86287.0,0.13333387]
[1743618639798,0.0004,86288.0,86287.0,0.18523387]
[1743618640203,0.0498,86288.0,86287.0,0.23443387]
[1743618640405,0.1004,86288.0,86287.0,0.23443387]
[1743618640909,0.2162886,86288.0,86287.0,0.23443387]
[1743618641501,0.2162886,86288.0,86287.0,0.13333387]
[1743618642207,0.2162886,86288.0,86287.0,0.1176499]
[1743618645213,0.05,86300.0,86299.0,0.1158738]
[1743618645415,0.05,86300.0,86299.0,0.1176338]
[1743618645620,0.3608,86308.0,86303.0,0.1158685]
[1743618645810,0.0498,86307.0,86303.0,0.12611986]
[1743618646011,0.3608,86308.0,86303.0,0.12611986]
[1743618646012,0.3608,86308.0,86307.0,0.1158631]
[1743618646316,0.0494,86313.0,86312.0,0.1158564]
[1743618646521,0.0494,86313.0,86312.0,0.1176564]
[1743618647507,0.0494,86313.0,86312.0,0.4784564]
[1743618649016,0.0494,86313.0,86312.0,0.5252564]
[1743618649213,0.0004,86320.0,86316.0,0.0579251]
[1743618649424,0.0493,86333.0,86321.0,0.115843]
[1743618649717,0.1158483,86322.0,86321.0,0.1176443]
[1743618649921,0.1158483,86322.0,86321.0,0.0018]
[1743618650108,0.1158483,86322.0,86321.0,0.1176443]
[1743618650716,0.1158483,86322.0,86321.0,0.0018]
[1743618651125,0.1158483,86322.0,86321.0,0.1176443]
[1743618651424,0.0579208,86324.0,86323.0,0.1158416]
[1743618651625,0.0579208,86324.0,86323.0,0.1176016]
[1743618653731,0.1067208,86324.0,86323.0,0.1176016]
[1743618653915,0.1067208,86324.0,86323.0,0.1692016]
[1743618654726,0.1067208,86324.0,86323.0,0.2183016]
[1743618655409,0.0488,86324.0,86323.0,0.2183016]
[1743618655615,0.1646403,86324.0,86323.0,0.2183016]
[1743618657624,0.1646403,86324.0,86323.0,0.1692016]
[1743618658319,0.1646403,86324.0,86323.0,0.2166016]
[1743618658521,0.1646403,86324.0,86323.0,0.1692016]
[1743618658729,0.1646403,86324.0,86323.0,0.00176]
[1743618659027,0.1646403,86324.0,86279.0,0.00046361]
[1743618659028,0.1158658,86305.0,86304.0,0.3608]
[1743618659229,0.1158658,86305.0,86304.0,0.36204]
[1743618659936,0.1650658,86305.0,86304.0,0.36204]
[1743618660119,0.16630581,86305.0,86304.0,0.36204]
[1743618660831,0.16630581,86305.0,86304.0,0.4779071]
[1743618662331,0.21530581,86305.0,86304.0,0.36204]
[1743618662532,0.34694737,86305.0,86304.0,0.00124]
[1743618662825,0.34694737,86305.0,86296.0,0.00017378]
[1743618662826,0.1158765,86297.0,86296.0,0.00017378]
[1743618663030,0.0982,86305.0,86303.0,0.1158671]
[1743618663336,0.21552068,86305.0,86304.0,0.1646671]
[1743618663532,0.21548069,86305.0,86304.0,0.1659071]
[1743618663732,0.16648069,86305.0,86304.0,0.1659071]
[1743618663928,0.21358069,86305.0,86304.0,0.1659071]
[1743618664130,0.09771379,86305.0,86304.0,0.2170071]
[1743618664327,0.09647378,86305.0,86304.0,0.2170071]
[1743618664727,0.21233958,86305.0,86304.0,0.2170071]
[1743618665032,0.09771379,86305.0,86304.0,0.2170071]
[1743618665231,0.21357959,86305.0,86304.0,0.2170071]
[1743618665834,0.1737818,86315.0,86314.0,0.1158537]
[1743618666028,0.1737818,86315.0,86314.0,0.1174537]
[1743618666534,0.2245818,86315.0,86314.0,0.0016]
[1743618666928,0.1158644,86306.0,86301.0,0.057935]
[1743618667236,0.1158644,86306.0,86305.0,0.0016]
[1743618667531,0.1737894,86313.0,86312.0,0.1158524]
[1743618667731,0.1737894,86313.0,86312.0,0.4782524]
[1743618668134,0.1737894,86313.0,86312.0,0.5295524]
[1743618669325,0.4237894,86313.0,86312.0,0.0016]
[1743618669525,0.1158765,86297.0,86296.0,0.00017378]
[1743618669832,0.4766765,86297.0,86296.0,0.00177378]
[1743618670133,0.6271765,86297.0,86296.0,0.00017378]
[1743618670843,0.2663765,86297.0,86296.0,0.36097378]
[1743618671132,0.2663765,86297.0,86296.0,0.16965168]
[1743618672126,0.0978,86297.0,86296.0,0.16965168]
[1743618672332,0.53477378,86305.0,86304.0,0.1158671]
[1743618672536,0.53477378,86305.0,86304.0,0.1174671]
[1743618672926,0.53477378,86305.0,86304.0,0.0016]
[1743618673135,0.1738121,86299.0,86298.0,0.0579376]
[1743618673335,0.1738121,86299.0,86298.0,0.0172498]
[1743618673641,0.2237121,86299.0,86298.0,0.01725371]
[1743618673846,0.2755121,86299.0,86298.0,0.01725371]
[1743618674144,0.2755121,86299.0,86298.0,0.49224891]
[1743618674338,0.00017378,86305.0,86304.0,0.1158671]
[1743618674642,0.00017378,86305.0,86304.0,0.2210671]
[1743618674840,0.1035,86321.0,86310.0,0.0579294]
[1743618675044,0.1035,86321.0,86312.0,0.1158564]
[1743618675045,0.1737839,86313.0,86312.0,0.1158564]
[1743618675346,0.1737839,86313.0,86312.0,0.1867014]
[1743618675927,0.2772839,86313.0,86312.0,0.1867014]
[1743618676334,0.2772839,86313.0,86312.0,0.18668024]
[1743618676733,0.0517,86313.0,86312.0,0.23898024]
[1743618676938,0.1158512,86316.0,86315.0,0.115851]
[1743618677143,0.1158512,86316.0,86315.0,0.23637484]
[1743618677731,0.1681512,86316.0,86315.0,0.23637484]
[1743618677932,0.00017378,86321.0,86319.0,0.115847]
[1743618678243,0.00017378,86321.0,86320.0,0.18283858]
[1743618678544,0.00017378,86321.0,86320.0,0.23677858]
[1743618678748,0.0004,86336.0,86320.0,0.23677858]
[1743618678749,0.0004,86336.0,86328.0,0.1158349]
[1743618679046,0.1737457,86334.0,86333.0,0.1158255]
[1743618679345,0.1737457,86334.0,86333.0,0.13331517]
[1743618679849,0.2723457,86334.0,86333.0,0.13331517]
[1743618681648,0.0004,86336.0,86335.0,0.1158255]
[1743618681840,0.0004,86336.0,86335.0,0.13323517]
[1743618682046,0.0004,86336.0,86335.0,0.23673517]
[1743618682647,0.0004,86336.0,86335.0,0.24527142]
[1743618682839,0.1162242,86336.0,86335.0,0.24527142]
[1743618683147,0.11598988,86342.0,86341.0,0.1158175]
[1743618683352,0.11598988,86342.0,86341.0,0.49394812]
[1743618684048,0.11598988,86342.0,86341.0,0.59834812]
[1743618686447,0.11598988,86342.0,86341.0,0.48253062]
[1743618686643,0.11598988,86342.0,86341.0,0.0016]
[1743618686838,0.16778988,86342.0,86341.0,0.0016]
[1743618687050,0.22108988,86342.0,86341.0,0.0016]
[1743618687645,0.16778988,86342.0,86341.0,0.1174175]
[1743618687845,0.16778988,86342.0,86341.0,0.1688175]
[1743618688554,0.00017378,86342.0,86341.0,0.1688175]
[1743618688744,0.00017378,86342.0,86341.0,0.2211175]
[1743618689752,0.11598988,86342.0,86341.0,0.2211175]
[1743618691452,0.00017378,86342.0,86341.0,0.2211175]
[1743618691957,0.32598988,86342.0,86341.0,0.0016]
[1743618692251,0.1158322,86330.0,86329.0,0.4766336]
[1743618692458,0.1158322,86330.0,86329.0,0.4782336]
[1743618692653,0.2768322,86330.0,86329.0,0.4782336]
[1743618693856,0.2768322,86330.0,86329.0,0.0016]
[1743618694058,0.5168322,86330.0,86329.0,0.0016]
[1743618694359,0.65004775,86330.0,86329.0,0.0016]
[1743618698458,0.1158376,86326.0,86315.0,0.1737773]
[1743618698663,0.1158376,86326.0,86319.0,0.1158459]
[1743618698864,0.1158376,86326.0,86320.0,0.0546]
[1743618700063,0.1158376,86326.0,86321.0,0.115844]
[1743618700358,0.1158376,86326.0,86325.0,0.00185378]
[1743618700655,0.3558376,86326.0,86325.0,0.00185378]
[1743618700857,0.1158564,86312.0,86304.0,0.0546]
[1743618701063,0.11645641,86312.0,86304.0,0.1704663]
[1743618701361,0.11645641,86312.0,86305.0,0.1158657]
[1743618701763,0.22625641,86312.0,86305.0,0.1158657]
[1743618703562,0.22625641,86312.0,86306.0,0.1158644]
[1743618704360,0.22625641,86312.0,86304.0,0.0546]
[1743618704550,0.22625641,86312.0,86309.0,0.0579295]
[1743618704754,0.00060001,86312.0,86311.0,0.47712114]
[1743618704954,0.1158564,86316.0,86315.0,0.0579249]
[1743618705158,0.1158564,86316.0,86315.0,0.0590849]
[1743618705159,0.11645641,86316.0,86315.0,0.0590849]
[1743618705356,0.16925641,86316.0,86315.0,0.0590849]
[1743618705563,0.16925641,86316.0,86315.0,0.1127849]
[1743618706062,0.11645641,86316.0,86315.0,0.1127849]
[1743618706776,0.00060001,86316.0,86315.0,0.1127849]
[1743618707070,0.1158415,86324.0,86319.0,0.115847]
[1743618707267,0.00077379,86320.0,86319.0,0.60261136]
[1743618707472,0.00017378,86320.0,86319.0,0.62789232]
[1743618707667,0.11601938,86320.0,86319.0,0.62789232]
[1743618707868,0.00149378,86320.0,86319.0,0.60261136]
[1743618708064,0.1158421,86323.0,86322.0,0.115843]
[1743618708270,0.1171621,86323.0,86322.0,0.32028736]
[1743618708466,0.11644211,86323.0,86322.0,0.32028736]
[1743618708674,0.1158421,86323.0,86322.0,0.32028736]
[1743618708876,0.1171221,86323.0,86322.0,0.32028736]
[1743618709576,0.19560397,86331.0,86330.0,0.1158322]
[1743618709878,0.19560397,86331.0,86330.0,0.50921479]
[1743618710486,0.05808958,86331.0,86330.0,0.61571479]
[1743618710780,0.00017378,86331.0,86330.0,0.61571479]
[1743618710980,0.00017378,86331.0,86330.0,0.60059656]
[1743618711680,0.00017378,86331.0,86330.0,0.60070534]
[1743618712873,0.00017378,86331.0,86330.0,0.61582442]
[1743618713572,0.11600468,86331.0,86330.0,0.44769222]
[1743618713876,0.11600468,86331.0,86330.0,0.56352442]
[1743618714178,0.00017378,86331.0,86330.0,0.56352442]
[1743618714374,0.00017378,86331.0,86330.0,0.61812442]
[1743618714573,0.00017378,86331.0,86330.0,0.60300534]
[1743618715169,0.00017378,86331.0,86330.0,0.60294096]
[1743618717172,0.00017378,86331.0,86330.0,0.60289167]
[1743618717885,0.0548,86340.0,86339.0,0.1158201]
[1743618718182,0.4187058,86346.0,86339.0,0.1158201]
[1743618718183,0.055,86345.0,86344.0,0.1158134]
[1743618718386,0.055,86345.0,86344.0,0.1174934]
[1743618718587,0.055,86345.0,86344.0,0.5327934]
[1743618718787,0.2229121,86345.0,86344.0,0.5327934]
[1743618719376,0.1679121,86345.0,86344.0,0.5327934]
[1743618719983,0.1679121,86345.0,86344.0,0.4782934]
[1743618721584,0.2216121,86345.0,86344.0,0.4782934]
[1743618722385,0.2216121,86345.0,86344.0,0.36248]
[1743618722693,0.2216121,86345.0,86344.0,0.00168]
[1743618722887,0.2216121,86345.0,86344.0,0.1174934]
[1743618724089,0.2416121,86345.0,86344.0,0.1174934]